Workbook

Sheet Pasiūlymas
A2: PIRKIMO SĄLYGŲ PRIEDAS "PASIŪLYMŲ FORMA"
A4: REAGENTAI IR PAPILDOMOS PRIEMONĖS
A6: Kam: | B6: VšĮ LSMU Kauno ligoninė
A8: Data: | B8: 2023-01-09
A9: Nr.: | B9: 1-81139388
A10: Vieta: | B10: Vilnius
A12: Tiekėjo pavadinimas / Ūkio subjektų grupės nariai: | C12: UAB"Linea libera"
A13: Tiekėjo kodas (-ai): | C13: 122145775
A14: Tiekėjo adresas (-ai): | C14: Akademijos g. 2, LT-08412 Vilnius
A15: Tiekėjo PVM mokėtojo kodas(-ai): | C15: LT221457716
A16: Tiekėjo / Ūkio subjektų grupės atsakingo partnerio sąskaitos numeris, banko pavadinimas ir banko kodas (-ai): | C16: A. s. LT277044060001098913 / AB SEB bankas / banko kodas 70440
A17: Asmens atsakingo už pasiūlymą vardas, pavardė: | C17: Eglė Kutaitė
A18: Asmens atsakingo už pasiūlymą telefono numeris, el. pašto adresas: | C18: info@linealibera.lt; tel. +37052638748
A19: Tiekėjo / Ūkio subjektų grupės, laimėjimo atveju, pasirašančio sutartį asmens vardas, pavardė, pareigos: | C19: Direktorius Juozas Daugvila
A20: Tiekėjo / Ūkio subjektų grupės, laimėjimo atveju, už sutarties vykdymą atsakingo asmens vardas, pavardė, telefono numeris, elektroninio pašto adresas: | C20: Eglė Kutaitė; tel. +370 5 2638748, info@linealibera.lt
A21: (1) Tiekėjo / Ūkio subjektų grupės narių, (2) ūkio subjektų, kurių pajėgumais remiamasi, ir (3) jei pašalinimo pagrindai taikomi visiems subtiekėjams - subtiekėjų, kolegialaus priežiūros organo (Stebėtojų tarybos) ir (ar) kolegialaus valdymo organo (Valdybos) narių sąrašas (jei sudaryta) ir (ar) asmuo, kuriam suteikti VPĮ 46 str. 2 d. 2 p. numatyti įgaliojimai | C21: Nėra | G21: =IF((SUMPRODUCT(--(C21=""))>0), "Privaloma užpildyti, kai taikomi pašalinimo pagrindai", "") -> 
A23: Tiekėjo patvirtinimai:
A24: 1. Šiuo pasiūlymu pažymime, kad sutinkame su visomi pirkimo sąlygomis, nustatytomis:
A25: 1.1. viešojo pirkimo dokumentuose
A26: 1.2. kituose pirkimo dokumentuose (jų paaiškinimuose, papildymuose).
A27: 2. Patvirtiname, kad informacija ir duomenys, pateikti pasiūlyme, yra teisingi ir apima viską, ko reikia tinkamam sutarties įvykdymui
A28: 3. Patvirtiname, kad jei pasiūlyme nenurodyti kolegialaus priežiūros/valdymo organų nariai, šie organai juridiniuose asmenyse nėra sudaryti (taikoma, kai pirkimo dokumentuose nustatyti pašalinimo pagrindai).
A29: 4. Pasiūlymas galioja iki termino, nustatyto pirkimo dokumentuose.
A30: 5. Tais atvejais, kai pagal galiojančius teisės aktus tiekėjui nereikia mokėti PVM, jis nurodo priežastis, dėl kurių PVM nemoka:
A31: 6. Tiekėjas kainas pateikia, nurodydamas ne daugiau skaičių po kablelio, nei leidžiama pirkimo dokumentuose.
A32: 1. DALIS | B32: HEKTONO AGARAS
A34: Tiekėjo pasiūlymas:
A35: Nr. | B35: Pavadinimas | C35: Kiekis | D35: Mato vienetas | E35: Kaina be PVM, Eur | F35: Suma be PVM, Eur | G35: Gamintojas, modelis
A36: 1. | B36: Hektono agaras
A37: 1.1. | B37: Hektono agaras | C37: 4500 | D37: g | E37: 0.09 | F37: =IF(ISBLANK(E37),"", PRODUCT(C37,E37)) -> 405 | G37: ThermoFisher Scientific OXOID; CM0419B
E38: Suma be PVM | F38: =IF(F37="","",SUM(F37:F37)) -> 405 | G38: =IF(F37="","Neužpildytos visos objektų kainos","") -> 
E39: PVM suma | F39: =F38*0.05 -> 20.25
E40: Suma su PVM | F40: =IF(ISBLANK(F39), "", SUM(F38:F39)) -> 425.25
A44: 2. DALIS | B44: TRIJŲ CUKRŲ GELEŽIES AGARAS
A46: Tiekėjo pasiūlymas:
A47: Nr. | B47: Pavadinimas | C47: Kiekis | D47: Mato vienetas | E47: Kaina be PVM, Eur | F47: Suma be PVM, Eur | G47: Gamintojas, modelis
A48: 2. | B48: Trijų cukrų geležies agaras
A49: 2.1. | B49: Trijų cukrų geležies agaras | C49: 1000 | D49: g | E49: 0.048 | F49: =IF(ISBLANK(E49),"", PRODUCT(C49,E49)) -> 48 | G49: ThermoFisher Scientific OXOID; CM0277B
E50: Suma be PVM | F50: =IF(F49="","",SUM(F49:F49)) -> 48 | G50: =IF(F49="","Neužpildytos visos objektų kainos","") -> 
E51: PVM suma | F51: =F50*0.05 -> 2.4
E52: Suma su PVM | F52: =IF(ISBLANK(F51), "", SUM(F50:F51)) -> 50.4
A56: 3. DALIS | B56: CLED AGARAS
A58: Tiekėjo pasiūlymas:
A59: Nr. | B59: Pavadinimas | C59: Kiekis | D59: Mato vienetas | E59: Kaina be PVM, Eur | F59: Suma be PVM, Eur | G59: Gamintojas, modelis
A60: 3. | B60: CLED agaras
A61: 3.1. | B61: CLED agaras | C61: 1500 | D61: g | E61: 0.058 | F61: =IF(ISBLANK(E61),"", PRODUCT(C61,E61)) -> 87 | G61: ThermoFisher Scientific OXOID; CM0301B
E62: Suma be PVM | F62: =IF(F61="","",SUM(F61:F61)) -> 87 | G62: =IF(F61="","Neužpildytos visos objektų kainos","") -> 
E63: PVM suma | F63: =F62*0.05 -> 4.35
E64: Suma su PVM | F64: =IF(ISBLANK(F63), "", SUM(F62:F63)) -> 91.35
A68: 4. DALIS | B68: BUFERIS JERSINIJOMS
A70: Tiekėjo pasiūlymas:
A71: Nr. | B71: Pavadinimas | C71: Kiekis | D71: Mato vienetas | E71: Kaina be PVM, Eur | F71: Suma be PVM, Eur | G71: Gamintojas, modelis
A72: 4. | B72: Buferis jersinijoms
A73: 4.1. | B73: Buferis jersinijoms | C73: 4000 | D73: g | E73: 0.27 | F73: =IF(ISBLANK(E73),"", PRODUCT(C73,E73)) -> 1080 | G73: ThermoFisher Scientific OXOID; BR0014G
E74: Suma be PVM | F74: =IF(F73="","",SUM(F73:F73)) -> 1080 | G74: =IF(F73="","Neužpildytos visos objektų kainos","") -> 
E75: PVM suma | F75: =F74*0.05 -> 54
E76: Suma su PVM | F76: =IF(ISBLANK(F75), "", SUM(F74:F75)) -> 1134
A80: 5. DALIS | B80: GRADUOTOS JUOSTELĖS ANTIBIOTIKO MSK NUSTATYTI (E TESTAI)
A82: Tiekėjo pasiūlymas:
A83: Nr. | B83: Pavadinimas | C83: Kiekis | D83: Mato vienetas | E83: Kaina be PVM, Eur | F83: Suma be PVM, Eur | G83: Gamintojas, modelis
A84: 5. | B84: Graduotos juostelės antibiotiko MSK nustatyti (E testai)
A85: 5.1. | B85: Graduotos juostelės antibiotiko MSK nustatyti (E testai) | C85: 300 | D85: vnt. | F85: =IF(ISBLANK(E85),"", PRODUCT(C85,E85)) -> 
E86: Suma be PVM | F86: =IF(F85="","",SUM(F85:F85)) ->  | G86: =IF(F85="","Neužpildytos visos objektų kainos","") -> Neužpildytos visos objektų kainos
E87: PVM suma
E88: Suma su PVM | F88: =IF(ISBLANK(F87), "", SUM(F86:F87)) -> 
A92: 6. DALIS | B92: KOVAČO REAGENTAS
A94: Tiekėjo pasiūlymas:
A95: Nr. | B95: Pavadinimas | C95: Kiekis | D95: Mato vienetas | E95: Kaina be PVM, Eur | F95: Suma be PVM, Eur | G95: Gamintojas, modelis
A96: 6. | B96: Kovačo reagentas
A97: 6.1. | B97: Kovačo reagentas | C97: 300 | D97: ml | F97: =IF(ISBLANK(E97),"", PRODUCT(C97,E97)) -> 
E98: Suma be PVM | F98: =IF(F97="","",SUM(F97:F97)) ->  | G98: =IF(F97="","Neužpildytos visos objektų kainos","") -> Neužpildytos visos objektų kainos
E99: PVM suma
E100: Suma su PVM | F100: =IF(ISBLANK(F99), "", SUM(F98:F99)) -> 
A104: 7. DALIS | B104: CHROMOGENINIAI AGARAI SPECIFINIŲ SUKĖLĖJŲ AR ATSPARIŲ PADERMIŲ NUSTATYMUI LĖKŠTELĖSE, IŠSKYRIMUI IŠ KLININKINĖS MEDŽIAGOS.
A106: Tiekėjo pasiūlymas:
A107: Nr. | B107: Pavadinimas | C107: Kiekis | D107: Mato vienetas | E107: Kaina be PVM, Eur | F107: Suma be PVM, Eur | G107: Gamintojas, modelis
A108: 7. | B108: Chromogeniniai agarai specifinių sukėlėjų ar atsparių padermių nustatymui lėkštelėse, išskyrimui iš klininkinės medžiagos.
A109: 7.1. | B109: Chromagaras grybeliams lėkštelėse | C109: 600 | D109: vnt. | E109: 0.692 | F109: =IF(ISBLANK(E109),"", PRODUCT(C109,E109)) -> 415.2 | G109: ThermoFisher Scientific OXOID; PO1034A
A110: 7.2. | B110: Chromagaras B grupės streptokokų atrankai | C110: 1500 | D110: vnt. | E110: 1 | F110: 1500 | G110: ThermoFisher Scientific OXOID; PO5320A
A111: 7.3. | B111: Chromagaras šlapimo t. infekcijos sukėlėjams | C111: 15000 | D111: vnt. | E111: 0.738 | F111: 11070 | G111: ThermoFisher Scientific OXOID; PO1110A
A112: 7.4. | B112: Chromo agaras ESBL lėkštelėse | C112: 2500 | D112: vnt. | E112: 0.738 | F112: 1845 | G112: ThermoFisher Scientific OXOID; PO5302A
A113: 7.5. | B113: Chromagaras CARBA | C113: 300 | D113: vnt. | E113: 1.328 | F113: 398.4 | G113: ThermoFisher Scientific OXOID; PO1226A
A114: 7.6. | B114: Chromo agaras MRSA atrankai | C114: 300 | D114: vnt. | E114: 0.782 | F114: 234.6 | G114: ThermoFisher Scientific OXOID; PO1210A
A115: 7.7. | B115: Chromogeninis S.aureus agaras | C115: 4500 | D115: vnt. | E115: 1.052 | F115: 4734 | G115: ThermoFisher Scientific OXOID; PO1186A
E116: Suma be PVM | F116: =IF((SUMPRODUCT(--(F109:F115=""))>0), "", SUM(F109:F115)) -> 20197.2 | G116: =IF((SUMPRODUCT(--(F109:F115=""))>0), "Neužpildytos visų objektų kainos", "") -> 
E117: PVM suma | F117: =F116*0.05 -> 1009.86
E118: Suma su PVM | F118: =IF(ISBLANK(F117), "", SUM(F116:F117)) -> 21207.06
A122: 8. DALIS | B122: CANDIDA JAUTRUMO PRIEŠGRYBINIAMS VAISTAMS SISTEMA
A124: Tiekėjo pasiūlymas:
A125: Nr. | B125: Pavadinimas | C125: Kiekis | D125: Mato vienetas | E125: Kaina be PVM, Eur | F125: Suma be PVM, Eur | G125: Gamintojas, modelis
A126: 8. | B126: Candida jautrumo priešgrybiniams vaistams sistema
A127: 8.1. | B127: Candida jautrumo priešgrybiniams vaistams sistema | C127: 360 | D127: vnt. | F127: =IF(ISBLANK(E127),"", PRODUCT(C127,E127)) -> 
E128: Suma be PVM | F128: =IF(F127="","",SUM(F127:F127)) ->  | G128: =IF(F127="","Neužpildytos visos objektų kainos","") -> Neužpildytos visos objektų kainos
E129: PVM suma
E130: Suma su PVM | F130: =IF(ISBLANK(F129), "", SUM(F128:F129)) -> 
A134: 9. DALIS | B134: BAKTERIJŲ KULTŪRŲ TESTAS ŠLAPIMO TAKŲ INFEKCIJAI NUSTATYTI
A136: Tiekėjo pasiūlymas:
A137: Nr. | B137: Pavadinimas | C137: Kiekis | D137: Mato vienetas | E137: Kaina be PVM, Eur | F137: Suma be PVM, Eur | G137: Gamintojas, modelis
A138: 9. | B138: Bakterijų kultūrų testas šlapimo takų infekcijai nustatyti
A139: 9.1. | B139: Bakterijų kultūrų testas šlapimo takų infekcijai nustatyti | C139: 3000 | D139: vnt. | F139: =IF(ISBLANK(E139),"", PRODUCT(C139,E139)) -> 
E140: Suma be PVM | F140: =IF(F139="","",SUM(F139:F139)) ->  | G140: =IF(F139="","Neužpildytos visos objektų kainos","") -> Neužpildytos visos objektų kainos
E141: PVM suma
E142: Suma su PVM | F142: =IF(ISBLANK(F141), "", SUM(F140:F141)) -> 
A146: 10. DALIS | B146: PLOKŠTELĖS, SKIRTOS LĄSTELIŲ SKAIČIAVIMUI ORGANINIUOSE SKYSČIUOSE: PLOKŠTELĖSE 10 KAMERŲ, 160 KVADRATŲ, MĖGINIO TŪRIS TINKLELIO SKILTYJE 1ΜL
A148: Tiekėjo pasiūlymas:
A149: Nr. | B149: Pavadinimas | C149: Kiekis | D149: Mato vienetas | E149: Kaina be PVM, Eur | F149: Suma be PVM, Eur | G149: Gamintojas, modelis
A150: 10. | B150: Plokštelės, skirtos ląstelių skaičiavimui organiniuose skysčiuose: Plokštelėse 10 kamerų, 160 kvadratų, mėginio tūris tinklelio skiltyje 1µl
A151: 10.1. | B151: Plokštelės, skirtos ląstelių skaičiavimui organiniuose skysčiuose: | C151: 3500 | D151: vnt. | F151: =IF(ISBLANK(E151),"", PRODUCT(C151,E151)) -> 
E152: Suma be PVM | F152: =IF(F151="","",SUM(F151:F151)) ->  | G152: =IF(F151="","Neužpildytos visos objektų kainos","") -> Neužpildytos visos objektų kainos
E153: PVM suma
E154: Suma su PVM | F154: =IF(ISBLANK(F153), "", SUM(F152:F153)) -> 
A158: 11. DALIS | B158: KONUSINIAI CELIULIOZINIAI KAMŠČIAI Æ16 MM. MĖGINTUVĖLIAMS
A160: Tiekėjo pasiūlymas:
A161: Nr. | B161: Pavadinimas | C161: Kiekis | D161: Mato vienetas | E161: Kaina be PVM, Eur | F161: Suma be PVM, Eur | G161: Gamintojas, modelis
A162: 11. | B162: Konusiniai celiulioziniai kamščiai Æ16 mm. mėgintuvėliams
A163: 11.1. | B163: Konusiniai celiulioziniai kamščiai Æ16 mm. mėgintuvėliams | C163: 30000 | D163: vnt. | F163: =IF(ISBLANK(E163),"", PRODUCT(C163,E163)) -> 
E164: Suma be PVM | F164: =IF(F163="","",SUM(F163:F163)) ->  | G164: =IF(F163="","Neužpildytos visos objektų kainos","") -> Neužpildytos visos objektų kainos
E165: PVM suma
E166: Suma su PVM | F166: =IF(ISBLANK(F165), "", SUM(F164:F165)) -> 
A170: 12. DALIS | B170: PLASTMASINĖS PETRI LĖKŠTELĖS Ø 90 STERILIOS
A172: Tiekėjo pasiūlymas:
A173: Nr. | B173: Pavadinimas | C173: Kiekis | D173: Mato vienetas | E173: Kaina be PVM, Eur | F173: Suma be PVM, Eur | G173: Gamintojas, modelis
A174: 12. | B174: Plastmasinės Petri lėkštelės Ø 90 sterilios
A175: 12.1. | B175: Plastmasinės Petri lėkštelės | C175: 12000 | D175: vnt. | F175: =IF(ISBLANK(E175),"", PRODUCT(C175,E175)) -> 
E176: Suma be PVM | F176: =IF(F175="","",SUM(F175:F175)) ->  | G176: =IF(F175="","Neužpildytos visos objektų kainos","") -> Neužpildytos visos objektų kainos
E177: PVM suma
E178: Suma su PVM | F178: =IF(ISBLANK(F177), "", SUM(F176:F177)) -> 
A182: 13. DALIS | B182: PASTERO PIPETĖS
A184: Tiekėjo pasiūlymas:
A185: Nr. | B185: Pavadinimas | C185: Kiekis | D185: Mato vienetas | E185: Kaina be PVM, Eur | F185: Suma be PVM, Eur | G185: Gamintojas, modelis
A186: 13. | B186: Pastero pipetės
A187: 13.1. | B187: Pastero pipetės | C187: 1000 | D187: vnt. | F187: =IF(ISBLANK(E187),"", PRODUCT(C187,E187)) -> 
A188: 13.2. | B188: Patero pipetės | C188: 62000 | D188: vnt. | F188: =IF(ISBLANK(E188),"", PRODUCT(C188,E188)) -> 
E189: Suma be PVM | F189: =IF((SUMPRODUCT(--(F187:F188=""))>0), "", SUM(F187:F188)) ->  | G189: =IF((SUMPRODUCT(--(F187:F188=""))>0), "Neužpildytos visų objektų kainos", "") -> Neužpildytos visų objektų kainos
E190: PVM suma
E191: Suma su PVM | F191: =IF(ISBLANK(F190), "", SUM(F189:F190)) -> 
A195: 14. DALIS | B195: LABORATORINĖS KILPELĖS
A197: Tiekėjo pasiūlymas:
A198: Nr. | B198: Pavadinimas | C198: Kiekis | D198: Mato vienetas | E198: Kaina be PVM, Eur | F198: Suma be PVM, Eur | G198: Gamintojas, modelis
A199: 14. | B199: laboratorinės kilpelės
A200: 14.1. | B200: kilpelės | C200: 10000 | D200: vnt. | F200: =IF(ISBLANK(E200),"", PRODUCT(C200,E200)) -> 
E201: Suma be PVM | F201: =IF(F200="","",SUM(F200:F200)) ->  | G201: =IF(F200="","Neužpildytos visos objektų kainos","") -> Neužpildytos visos objektų kainos
E202: PVM suma
E203: Suma su PVM | F203: =IF(ISBLANK(F202), "", SUM(F201:F202)) -> 
A207: 15. DALIS | B207: AUTOCHECK TM 5+ KONTROLĖ ANALIZATORIUI ABL 800 FLEX
A209: Tiekėjo pasiūlymas:
A210: Nr. | B210: Pavadinimas | C210: Kiekis | D210: Mato vienetas | E210: Kaina be PVM, Eur | F210: Suma be PVM, Eur | G210: Gamintojas, modelis
A211: 15. | B211: AutoCheck TM 5+ kontrolė analizatoriui ABL 800 FLEX
A212: 15.1. | B212: AutoCheck TM 5+ 1 lygio kontrolė | C212: 150 | D212: ampulė | F212: =IF(ISBLANK(E212),"", PRODUCT(C212,E212)) -> 
A213: 15.2. | B213: AutoCheck TM 5+ 2 lygio kontrolė | C213: 150 | D213: ampulė | F213: =IF(ISBLANK(E213),"", PRODUCT(C213,E213)) -> 
A214: 15.3. | B214: AutoCheck TM 5+ 3 lygio kontrolė | C214: 150 | D214: ampulė | F214: =IF(ISBLANK(E214),"", PRODUCT(C214,E214)) -> 
A215: 15.4. | B215: AutoCheck TM 5+ 4 lygio kontrolė | C215: 150 | D215: ampulė | F215: =IF(ISBLANK(E215),"", PRODUCT(C215,E215)) -> 
E216: Suma be PVM | F216: =IF((SUMPRODUCT(--(F212:F215=""))>0), "", SUM(F212:F215)) ->  | G216: =IF((SUMPRODUCT(--(F212:F215=""))>0), "Neužpildytos visų objektų kainos", "") -> Neužpildytos visų objektų kainos
E217: PVM suma
E218: Suma su PVM | F218: =IF(ISBLANK(F217), "", SUM(F216:F217)) -> 
A222: 16. DALIS | B222: MEMBRANOS ANALIZATORIUI ABL 800 FLEX
A224: Tiekėjo pasiūlymas:
A225: Nr. | B225: Pavadinimas | C225: Kiekis | D225: Mato vienetas | E225: Kaina be PVM, Eur | F225: Suma be PVM, Eur | G225: Gamintojas, modelis
A226: 16. | B226: Membranos analizatoriui ABL 800 FLEX
A227: 16.1. | B227: Ref. membrana D711 | C227: 12 | D227: vnt. | F227: =IF(ISBLANK(E227),"", PRODUCT(C227,E227)) -> 
A228: 16.2. | B228: pO2 membrana D799 | C228: 4 | D228: vnt. | F228: =IF(ISBLANK(E228),"", PRODUCT(C228,E228)) -> 
A229: 16.3. | B229: pCO2 membrana D788 | C229: 4 | D229: vnt. | F229: =IF(ISBLANK(E229),"", PRODUCT(C229,E229)) -> 
E230: Suma be PVM | F230: =IF((SUMPRODUCT(--(F227:F229=""))>0), "", SUM(F227:F229)) ->  | G230: =IF((SUMPRODUCT(--(F227:F229=""))>0), "Neužpildytos visų objektų kainos", "") -> Neužpildytos visų objektų kainos
E231: PVM suma
E232: Suma su PVM | F232: =IF(ISBLANK(F231), "", SUM(F230:F231)) -> 
A236: 17. DALIS | B236: VALYMO TIRPALAS S8375, 175 ML ANALIZATORIUI ABL 800 FLEX
A238: Tiekėjo pasiūlymas:
A239: Nr. | B239: Pavadinimas | C239: Kiekis | D239: Mato vienetas | E239: Kaina be PVM, Eur | F239: Suma be PVM, Eur | G239: Gamintojas, modelis
A240: 17. | B240: Valymo tirpalas S8375, 175 ml analizatoriui ABL 800 FLEX
A241: 17.1. | B241: Valymo tirpalas S8375, 175 ml analizatoriui ABL 800 FLEX | C241: 6 | D241: vnt. | F241: =IF(ISBLANK(E241),"", PRODUCT(C241,E241)) -> 
E242: Suma be PVM | F242: =IF(F241="","",SUM(F241:F241)) ->  | G242: =IF(F241="","Neužpildytos visos objektų kainos","") -> Neužpildytos visos objektų kainos
E243: PVM suma
E244: Suma su PVM | F244: =IF(ISBLANK(F243), "", SUM(F242:F243)) -> 
A248: 18. DALIS | B248: KALIBRAVIMO TIRPALAS 1 S1820, 200 ML ANALIZATORIUI ABL 800 FLEX
A250: Tiekėjo pasiūlymas:
A251: Nr. | B251: Pavadinimas | C251: Kiekis | D251: Mato vienetas | E251: Kaina be PVM, Eur | F251: Suma be PVM, Eur | G251: Gamintojas, modelis
A252: 18. | B252: Kalibravimo tirpalas 1 S1820, 200 ml analizatoriui ABL 800 FLEX
A253: 18.1. | B253: Kalibravimo tirpalas 1 S1820, 200 ml analizatoriui ABL 800 FLEX | C253: 7 | D253: vnt. | F253: =IF(ISBLANK(E253),"", PRODUCT(C253,E253)) -> 
E254: Suma be PVM | F254: =IF(F253="","",SUM(F253:F253)) ->  | G254: =IF(F253="","Neužpildytos visos objektų kainos","") -> Neužpildytos visos objektų kainos
E255: PVM suma
E256: Suma su PVM | F256: =IF(ISBLANK(F255), "", SUM(F254:F255)) -> 
A260: 19. DALIS | B260: KALIBRAVIMO TIRPALAS 2 S1820, 200 ML ANALIZATORIUI ABL 800 FLEX
A262: Tiekėjo pasiūlymas:
A263: Nr. | B263: Pavadinimas | C263: Kiekis | D263: Mato vienetas | E263: Kaina be PVM, Eur | F263: Suma be PVM, Eur | G263: Gamintojas, modelis
A264: 19. | B264: Kalibravimo tirpalas 2 S1820, 200 ml analizatoriui ABL 800 FLEX
A265: 19.1. | B265: Kalibravimo tirpalas 2 S1820, 200 ml analizatoriui ABL 800 FLEX | C265: 4 | D265: vnt. | F265: =IF(ISBLANK(E265),"", PRODUCT(C265,E265)) -> 
E266: Suma be PVM | F266: =IF(F265="","",SUM(F265:F265)) ->  | G266: =IF(F265="","Neužpildytos visos objektų kainos","") -> Neužpildytos visos objektų kainos
E267: PVM suma
E268: Suma su PVM | F268: =IF(ISBLANK(F267), "", SUM(F266:F267)) -> 
A272: 20. DALIS | B272: PRAPLOVIMO TIRPALAS S4980, 600 ML ANALIZATORIUI ABL 800 FLEX
A274: Tiekėjo pasiūlymas:
A275: Nr. | B275: Pavadinimas | C275: Kiekis | D275: Mato vienetas | E275: Kaina be PVM, Eur | F275: Suma be PVM, Eur | G275: Gamintojas, modelis
A276: 20. | B276: Praplovimo tirpalas S4980, 600 ml analizatoriui ABL 800 FLEX
A277: 20.1. | B277: Praplovimo tirpalas S4980, 600 ml analizatoriui ABL 800 FLEX | C277: 45 | D277: vnt. | F277: =IF(ISBLANK(E277),"", PRODUCT(C277,E277)) -> 
E278: Suma be PVM | F278: =IF(F277="","",SUM(F277:F277)) ->  | G278: =IF(F277="","Neužpildytos visos objektų kainos","") -> Neužpildytos visos objektų kainos
E279: PVM suma
E280: Suma su PVM | F280: =IF(ISBLANK(F279), "", SUM(F278:F279)) -> 
A284: 21. DALIS | B284: THB KALIBRAVIMO TIRPALAS S7770 ANALIZATORIUI ABL 800 FLEX
A286: Tiekėjo pasiūlymas:
A287: Nr. | B287: Pavadinimas | C287: Kiekis | D287: Mato vienetas | E287: Kaina be PVM, Eur | F287: Suma be PVM, Eur | G287: Gamintojas, modelis
... 612 more rows

Sheet Subtiekėjai ir priedai
A2: Ūkio subjektai (įskaitant kvazisubtiekėjus - fiziniai asmenys, kuriuos ketinama įdarbinti pirkimo laimėjimo atveju), kurių pajėgumais tiekėjas remiasi, kad atitiktų keliamus kvalifikacijos reikalavimus:
A5: Pavadinimas* | C5: Kodas, adresas | F5: Perduodami įsipareigojimai | I5: Perduodamų įsipareigojimų dalis nuo visos pirkimo sutarties (Eur arba %) | K5: Kval. Reikalavimo Nr.
A17: Subtiekėjams / subteikėjams / subrangovams numatomos perduoti veiklos (privaloma nurodyti) ir šių ūkio subjektų pavadinimai (jei žinomi):
A19: Pavadinimas | C19: Kodas, adresas | F19: Perduodama veikla* | I19: Perduodamos veiklos dalis nuo visos pirkimo sutarties (Eur arba %)
A33: Kartu su pasiūlymu pateikiami šie dokumentai:
A35: Nr. | B35: Dokumento pavadinimas | H35: Dokumentas yra konfidencialus? Taip/Ne
A36: 1 | B36: Jungtinės veiklos kopija (jei taikoma) | H36: ne
A37: 2 | B37: Europos bendrasis viešųjų pirkimų dokumentas | H37: ne
A38: 3 | B38: Subtiekimo sutartis, ketinimų protokolas, preliminarios sutartys ar kiti dokumentai, patvirtinantys, kad laimėjus pirkimą tiekėjui bus prieinami kitų ūkio subjektų ištekliai (jei pasitelkiami kvalifikacijos atitikimui) | H38: netaikoma
A48: Pasiūlyme nurodyta Prekės kaina, išskyrus jos sudedamąsias dalis, subtiekėjai, taip pat kita informacija, kuri teisės aktų nustatyta tvarka turi būti skelbiama arba kitokiu būdu viešai prieinama visuomenei, nėra laikoma konfidencialia informacija. Konfidencialią informaciją sudaro, visų pirma, komercinė (gamybinė) paslaptis ir konfidencialieji pasiūlymų aspektai. Informacija, kurią viešai skelbti įpareigoja Lietuvos Respublikos įstatymai, negali būti tiekėjo nurodoma kaip konfidenciali, todėl, tiekėjui nurodžius tokią informaciją kaip konfidencialią, perkančioji organizacija turi teisę ją skelbti. Jei tiekėjas nenurodo konfidencialios informacijos, laikoma, kad konfidencialios informacijos tiekėjo pasiūlyme nėra. Vadovaujantis Informacijos viešinimo Centrinėje viešųjų pirkimų informacinėje sistemoje tvarkos aprašu, patvirtintu Viešųjų pirkimų tarnybos direktoriaus 2017 m. birželio 19 d. įsakymu Nr. 1S-91 „Dėl Informacijos viešinimo Centrinėje viešųjų pirkimų informacinėje sistemoje tvarkos aprašo patvirtinimo“, perkančioji organizacija laimėjusio dalyvio pasiūlymą, išskyrus informaciją, kurią tiekėjas nurodė kaip konfidencialią, paskelbs CVP IS.
A51: Tiekėjo arba jo įgalioto asmens pareigų pavadinimas: | E51: Produktų specialistė
A53: Pasirašančio asmens vardas ir pavardė: | E53: Eglė Kutaitė
A100: 6279-2 2022-12-02 08:14:49
